[Event "106th British-ch Major 2019"]
[Site "Torquay"]
[Date "2019.08.03"]
[Round "8.21"]
[White "Lovell, William Pm"]
[Black "Mueller, Jens"]
[Result "1/2-1/2"]
[ECO "A36"]
[WhiteElo "1777"]
[BlackElo "1965"]
[Annotator "NA"]
[PlyCount "81"]
[EventDate "2019.07.27"]
[EventType "swiss"]
[EventCountry "GBR"]
[SourceTitle "playchess.com"]
[Source "ChessBase"]
[SourceQuality "1"]
[TimeControl "40/5400+30:1800+30"]

1. c4 {[%emt 0:00:00]} g6 {[%emt 0:00:00]} 2. g3 {[%emt 0:00:00]} Bg7 {[%emt 0:00:00]} 3. Bg2 {[%emt 0:00:00]} c5 {[%emt 0:00:09]} 4. Nc3 {[%emt 0:00:00]} Nc6 {[%emt 0:00:19]} 5. e4 {[%emt 0:00:00]} d6 {[%emt 0:00:25]} 6. Nge2 {[%emt 0:00:18]} Rb8 {[%emt 0:00:30]} 7. O-O {[%emt 0:00:49]} a6 {[%emt 0:00:28]} 8. a4 {[%emt 0:00:07]} Nd4 {[%emt 0:03:28]} 9. Rb1 {[%emt 0:01:52]} e6 {[%emt 0:01:21]} 10. b4 {[%emt 0:05:03]} Ne7 {[%emt 0:06:06]} 11. b5 {[%emt 0:17:20]} Bd7 {[%emt 0:00:42]} 12. Bb2 {[%emt 0:01:35]} O-O {[%emt 0:00:53]} 13. Nxd4 {[%emt 0:03:00]} cxd4 {[%emt 0:05:25]} 14. Ne2 {[%emt 0:00:41]} e5 {[%emt 0:00:58]} 15. d3 {[%emt 0:00:34]} f5 {[%emt 0:01:30]} 16. f3 {[%emt 0:04:52]} Bh6 {[%emt 0:02:12]} 17. Bc1 {[%emt 0:05:41]} Bxc1 {[%emt 0:01:36]} 18. Qxc1 {[%emt 0:00:51]} Be6 {[%emt 0:00:30]} 19. Bh3 {[%emt 0:06:13]} Qd7 {[%emt 0:00:58]} 20. Ra1 {[%emt 0:01:53]} Kg7 {[%emt 0:01:18]} 21. Kh1 {[%emt 0:04:28]} h6 {[%emt 0:01:24]} 22. Rg1 {[%emt 0:08:24]} fxe4 {[%emt 0:02:09]} 23. Bxe6 {[%emt 0:00:52]} Qxe6 {[%emt 0:00:07]} 24. fxe4 {[%emt 0:00:09]} Rf3 {[%emt 0:01:08]} 25. Qd2 {[%emt 0:00:38]} Rbf8 {[%emt 0:00:22]} 26. Rg2 {[%emt 0:03:15]} Ng8 {[%emt 0:04:58]} 27. Ng1 {[%emt 0:01:43]} Rf1 {[%emt 0:02:07]} 28. Rxf1 {[%emt 0:00:26]} Rxf1 {[%emt 0:00:05]} 29. Rf2 {[%emt 0:00:27]} Ra1 {[%emt 0:00:44]} 30. bxa6 {[%emt 0:02:17]} bxa6 {[%emt 0:00:07]} 31. Qa5 {[%emt 0:00:22]} Qd7 {[%emt 0:00:49]} 32. Qxa6 {[%emt 0:00:52]} Rxa4 {[%emt 0:00:09]} 33. Qb6 {[%emt 0:00:33]} Ra3 {[%emt 0:08:30]} 34. Rf3 {[%emt 0:09:15]} Qe7 {[%emt 0:04:04]} 35. Qb4 {[%emt 0:00:36]} Ra1 {[%emt 0:01:07]} 36. Qb2 {[%emt 0:00:56]} Ra7 {[%emt 0:00:59]} 37. Qb6 {[%emt 0:01:54]} Rb7 {[%emt 0:01:28]} 38. Qa6 {[%emt 0:00:28]} Qc7 {[%emt 0:05:32]} 39. h3 {[%emt 0:01:45]} Nf6 {[%emt 0:01:17]} 40. c5 {[%emt 0:00:46]} Ra7 {[%emt 0:02:30]} 41. cxd6 {[%emt 0:33:52]} 1/2-1/2

[Event "106th British-ch Major 2019"]
[Site "Torquay"]
[Date "2019.08.03"]
[Round "8.22"]
[White "Kirupakaran, Vishnu"]
[Black "Pink, Joshua"]
[Result "1/2-1/2"]
[ECO "B12"]
[WhiteElo "1771"]
[BlackElo "1907"]
[Annotator "NA"]
[PlyCount "118"]
[EventDate "2019.07.27"]
[EventType "swiss"]
[EventCountry "GBR"]
[SourceTitle "playchess.com"]
[Source "ChessBase"]
[SourceQuality "1"]
[TimeControl "40/5400+30:1800+30"]

1. e4 {[%emt 0:00:00]} c6 {[%emt 0:03:05]} 2. d4 {[%emt 0:00:00]} d5 {[%emt 0:00:06]} 3. e5 {[%emt 0:00:00]} Bf5 {[%emt 0:00:09]} 4. Nf3 {[%emt 0:11:41]} e6 {[%emt 0:00:47]} 5. Be2 {[%emt 0:00:09]} Nd7 {[%emt 0:00:21]} 6. Nbd2 {[%emt 0:00:37]} Ne7 {[%emt 0:00:26]} 7. Nb3 {[%emt 0:01:38]} h6 {[%emt 0:00:12]} 8. O-O {[%emt 0:00:55]} g5 {[%emt 0:00:13]} 9. c4 {[%emt 0:00:41]} Ng6 {[%emt 0:03:40]} 10. Be3 {[%emt 0:05:10]} f6 {[%emt 0:05:24]} 11. cxd5 {[%emt 0:10:22]} cxd5 {[%emt 0:02:11]} 12. Bd3 {[%emt 0:01:49]} g4 {[%emt 0:10:47]} 13. Bxf5 {[%emt 0:25:05]} exf5 {[%emt 0:01:11]} 14. Ne1 {[%emt 0:15:38]} fxe5 {[%emt 0:05:01]} 15. dxe5 {[%emt 0:00:04]} Ndxe5 {[%emt 0:00:58]} 16. Nd3 {[%emt 0:01:46]} Bd6 {[%emt 0:04:07]} 17. Nd4 {[%emt 0:01:10]} Qf6 {[%emt 0:06:35]} 18. Nxe5 {[%emt 0:08:04]} Nxe5 {[%emt 0:02:43]} 19. Qa4+ {[%emt 0:00:23]} Kf7 {[%emt 0:02:37]} 20. f3 {[%emt 0:04:23]} g3 {[%emt 0:09:31]} 21. hxg3 {[%emt 0:00:42]} Nc4 {[%emt 0:01:44]} 22. Qd7+ {[%emt 0:05:28]} Kg6 {[%emt 0:01:44]} 23. Bf2 {[%emt 0:00:34]} Rh7 {[%emt 0:03:04]} 24. Qb5 {[%emt 0:00:44]} Nb6 {[%emt 0:02:54]} 25. f4 {[%emt 0:02:23]} Re7 {[%emt 0:01:14]} 26. Nf3 {[%emt 0:02:54]} Re4 {[%emt 0:02:47]} 27. Bxb6 {[%emt 0:00:35]} axb6 {[%emt 0:01:35]} 28. Qxd5 {[%emt 0:00:11]} Bc5+ {[%emt 0:01:04]} 29. Kh1 {[%emt 0:00:06]} Rd8 {[%emt 0:03:34]} 30. Ne5+ {[%emt 0:00:22]} Kg7 {[%emt 0:04:18]} 31. Qxb7+ {[%emt 0:00:15]} Kg8 {[%emt 0:01:03]} 32. Rad1 {[%emt 0:01:26]} Re8 {[%emt 0:04:35]} 33. Qd5+ {[%emt 0:00:38]} Kg7 {[%emt 0:00:58]} 34. Nf3 {[%emt 0:00:32]} Re2 {[%emt 0:06:35]} 35. Qd7+ {[%emt 0:00:26]} R8e7 {[%emt 0:00:35]} 36. Qc8 {[%emt 0:00:30]} Qxb2 {[%emt 0:05:01]} 37. Rd8 {[%emt 0:00:25]} Qxa2 {[%emt 0:02:50]} 38. Qxf5 {[%emt 0:00:15]} Qf7 {[%emt 0:01:40]} 39. Qg4+ {[%emt 0:00:34]} Kf6 {[%emt 0:01:39]} 40. Nh4 {[%emt 0:00:26]} Re1 {[%emt 0:00:30]} 41. Rd1 {[%emt 0:18:31]} Rxf1+ {[%emt 0:00:25]} 42. Rxf1 {[%emt 0:00:03]} Qh7 {[%emt 0:04:07]} 43. Qh5 {[%emt 0:06:45]} Re6 {[%emt 0:03:36]} 44. g4 {[%emt 0:03:04]} Ke7 {[%emt 0:02:05]} 45. f5 {[%emt 0:01:43]} Re3 {[%emt 0:03:15]} 46. f6+ {[%emt 0:01:33]} Kd7 {[%emt 0:01:38]} 47. Qd5+ {[%emt 0:00:41]} Kc7 {[%emt 0:00:25]} 48. f7 {[%emt 0:01:17]} Qg7 {[%emt 0:07:14]} 49. Qf5 {[%emt 0:01:17]} Qc3 {[%emt 0:01:54]} 50. Nf3 {[%emt 0:00:28]} Bf8 {[%emt 0:00:41]} 51. Qf4+ {[%emt 0:00:24]} Kb7 {[%emt 0:00:41]} 52. Rd1 {[%emt 0:00:33]} Re2 {[%emt 0:04:11]} 53. Rd7+ {[%emt 0:00:21]} Kc8 {[%emt 0:01:10]} 54. Ra7 {[%emt 0:00:31]} Re1+ {[%emt 0:00:22]} 55. Nxe1 {[%emt 0:00:37]} Qxe1+ {[%emt 0:00:07]} 56. Kh2 {[%emt 0:00:04]} Qh4+ {[%emt 0:01:27]} 57. Kg1 {[%emt 0:00:09]} Qe1+ {[%emt 0:00:48]} 58. Kh2 {[%emt 0:00:56]} Qh4+ {[%emt 0:00:39]} 59. Kg1 {[%emt 0:00:08]} Qe1+ {[%emt 0:00:24]} 1/2-1/2

[Event "106th British-ch Major 2019"]
[Site "Torquay"]
[Date "2019.08.03"]
[Round "8.23"]
[White "Ruane, Brendan J"]
[Black "Sanitt, Ethan"]
[Result "0-1"]
[ECO "C00"]
[WhiteElo "1904"]
[BlackElo "1752"]
[Annotator "NA"]
[PlyCount "68"]
[EventDate "2019.07.27"]
[EventType "swiss"]
[EventCountry "GBR"]
[SourceTitle "playchess.com"]
[Source "ChessBase"]
[SourceQuality "1"]
[TimeControl "40/5400+30:1800+30"]

1. e4 {[%emt 0:00:02]} e6 {[%emt 0:00:03]} 2. Qe2 {[%emt 0:00:28]} Nc6 {[%emt 0:02:12]} 3. Nf3 {[%emt 0:00:20]} d5 {[%emt 0:00:49]} 4. d3 {[%emt 0:02:27]} Nf6 {[%emt 0:00:53]} 5. e5 {[%emt 0:02:02]} Nd7 {[%emt 0:00:19]} 6. g3 {[%emt 0:00:34]} Bc5 {[%emt 0:00:57]} 7. c3 {[%emt 0:01:00]} a5 {[%emt 0:02:12]} 8. d4 {[%emt 0:00:54]} Ba7 {[%emt 0:00:47]} 9. a4 {[%emt 0:03:33]} Ne7 {[%emt 0:05:04]} 10. h4 {[%emt 0:03:00]} c5 {[%emt 0:02:08]} 11. Na3 {[%emt 0:00:20]} O-O {[%emt 0:06:20]} 12. Bh3 {[%emt 0:02:45]} Nf5 {[%emt 0:08:23]} 13. Bxf5 {[%emt 0:02:04]} exf5 {[%emt 0:00:10]} 14. O-O {[%emt 0:03:36]} h6 {[%emt 0:08:39]} 15. Bf4 {[%emt 0:10:37]} b6 {[%emt 0:09:49]} 16. Rfe1 {[%emt 0:01:26]} Re8 {[%emt 0:01:17]} 17. Nb5 {[%emt 0:05:52]} Bb8 {[%emt 0:07:30]} 18. Qd2 {[%emt 0:05:58]} c4 {[%emt 0:06:39]} 19. Nd6 {[%emt 0:05:59]} Bxd6 {[%emt 0:01:03]} 20. exd6 {[%emt 0:01:07]} Nf6 {[%emt 0:02:16]} 21. Ne5 {[%emt 0:01:54]} Ne4 {[%emt 0:03:06]} 22. Qd1 {[%emt 0:03:11]} Nxd6 {[%emt 0:04:45]} 23. Qh5 {[%emt 0:05:12]} Qf6 {[%emt 0:01:57]} 24. Kg2 {[%emt 0:00:57]} Be6 {[%emt 0:01:14]} 25. Re2 {[%emt 0:07:32]} Nc8 {[%emt 0:04:09]} 26. Rae1 {[%emt 0:00:54]} Na7 {[%emt 0:01:07]} 27. Nf3 {[%emt 0:03:40]} Nc6 {[%emt 0:00:26]} 28. Bc7 {[%emt 0:00:54]} Ra6 {[%emt 0:03:48]} 29. Ne5 {[%emt 0:03:46]} Nxe5 {[%emt 0:00:32]} 30. Rxe5 {[%emt 0:01:43]} Qe7 {[%emt 0:02:22]} 31. Rxe6 {[%emt 0:02:17]} fxe6 {[%emt 0:00:10]} 32. Be5 {[%emt 0:00:43]} Ra7 {[%emt 0:00:50]} 33. Qe2 {[%emt 0:01:21]} Rb7 {[%emt 0:01:05]} 34. b4 {[%emt 0:03:15]} axb4 {[%emt 0:01:05]} 0-1

[Event "106th British-ch Major 2019"]
[Site "Torquay"]
[Date "2019.08.03"]
[Round "8.24"]
[White "Gray, Edward"]
[Black "Salmons, Calum"]
[Result "1/2-1/2"]
[ECO "B30"]
[WhiteElo "1757"]
[BlackElo "1898"]
[Annotator "NA"]
[PlyCount "69"]
[EventDate "2019.07.27"]
[EventType "swiss"]
[EventCountry "GBR"]
[SourceTitle "playchess.com"]
[Source "ChessBase"]
[SourceQuality "1"]
[TimeControl "40/5400+30:1800+30"]

1. e4 {[%emt 0:00:00]} c5 {[%emt 0:00:00]} 2. Nc3 {[%emt 0:00:00]} Nc6 {[%emt 0:00:00]} 3. Bb5 {[%emt 0:00:01]} Nd4 {[%emt 0:00:00]} 4. Bc4 {[%emt 0:00:08]} e6 {[%emt 0:00:38]} 5. Nge2 {[%emt 0:00:13]} Ne7 {[%emt 0:05:02]} 6. Nxd4 {[%emt 0:03:15]} cxd4 {[%emt 0:00:06]} 7. Ne2 {[%emt 0:00:06]} Nc6 {[%emt 0:01:15]} 8. O-O {[%emt 0:01:29]} Bc5 {[%emt 0:02:40]} 9. d3 {[%emt 0:00:46]} Na5 {[%emt 0:03:30]} 10. Bb3 {[%emt 0:04:17]} d5 {[%emt 0:03:39]} 11. e5 {[%emt 0:00:00]} Bd7 {[%emt 0:02:01]} 12. Ng3 {[%emt 0:01:20]} h5 {[%emt 0:08:04]} 13. f4 {[%emt 0:04:05]} g6 {[%emt 0:16:23]} 14. Bd2 {[%emt 0:04:45]} Nc6 {[%emt 0:03:47]} 15. Qf3 {[%emt 0:02:26]} h4 {[%emt 0:02:37]} 16. Nh1 {[%emt 0:03:46]} Ne7 {[%emt 0:03:31]} 17. Nf2 {[%emt 0:00:18]} Qc7 {[%emt 0:04:39]} 18. a3 {[%emt 0:05:14]} Nf5 {[%emt 0:01:19]} 19. Ng4 {[%emt 0:01:44]} O-O-O {[%emt 0:02:36]} 20. Ba2 {[%emt 0:01:54]} Rdg8 {[%emt 0:01:50]} 21. b4 {[%emt 0:01:28]} Be7 {[%emt 0:00:11]} 22. Rac1 {[%emt 0:02:30]} Kb8 {[%emt 0:03:25]} 23. Bb3 {[%emt 0:05:33]} g5 {[%emt 0:02:55]} 24. fxg5 {[%emt 0:05:12]} h3 {[%emt 0:03:37]} 25. g3 {[%emt 0:01:35]} Bxg5 {[%emt 0:00:41]} 26. Bxg5 {[%emt 0:00:31]} Rxg5 {[%emt 0:00:12]} 27. Nf6 {[%emt 0:02:32]} Rh6 {[%emt 0:06:45]} 28. Qf4 {[%emt 0:03:11]} Rhg6 {[%emt 0:02:46]} 29. Kh1 {[%emt 0:01:51]} Bc6 {[%emt 0:06:37]} 30. Rf2 {[%emt 0:02:17]} b6 {[%emt 0:00:56]} 31. a4 {[%emt 0:02:23]} Qc8 {[%emt 0:06:28]} 32. b5 {[%emt 0:00:41]} Bb7 {[%emt 0:01:44]} 33. a5 {[%emt 0:03:57]} Qc3 {[%emt 0:01:01]} 34. a6 {[%emt 0:02:25]} Bc8 {[%emt 0:01:19]} 35. Bxd5 {[%emt 0:05:05]} 1/2-1/2

[Event "106th British-ch Major 2019"]
[Site "Torquay"]
[Date "2019.08.03"]
[Round "8.25"]
[White "Whitehead, Mark A"]
[Black "Pattni, Kishan"]
[Result "1-0"]
[ECO "C77"]
[WhiteElo "1887"]
[BlackElo "1608"]
[Annotator "NA"]
[PlyCount "103"]
[EventDate "2019.07.27"]
[EventType "swiss"]
[EventCountry "GBR"]
[SourceTitle "playchess.com"]
[Source "ChessBase"]
[SourceQuality "1"]
[TimeControl "40/5400+30:1800+30"]

1. e4 {[%emt 0:03:01]} e5 {[%emt 0:00:20]} 2. Nf3 {[%emt 0:00:55]} Nc6 {[%emt 0:04:29]} 3. Bb5 {[%emt 0:01:05]} a6 {[%emt 0:00:04]} 4. Ba4 {[%emt 0:00:24]} b5 {[%emt 0:00:45]} 5. Bb3 {[%emt 0:00:09]} Bc5 {[%emt 0:03:53]} 6. d3 {[%emt 0:12:19]} Nf6 {[%emt 0:03:05]} 7. h3 {[%emt 0:02:23]} h6 {[%emt 0:02:23]} 8. c3 {[%emt 0:01:22]} d6 {[%emt 0:07:48]} 9. O-O {[%emt 0:00:56]} O-O {[%emt 0:01:38]} 10. Re1 {[%emt 0:04:25]} Be6 {[%emt 0:07:25]} 11. Bc2 {[%emt 0:00:29]} Ne7 {[%emt 0:05:36]} 12. d4 {[%emt 0:09:13]} exd4 {[%emt 0:00:29]} 13. cxd4 {[%emt 0:00:19]} Bb6 {[%emt 0:00:14]} 14. Nc3 {[%emt 0:04:03]} Ng6 {[%emt 0:02:26]} 15. d5 {[%emt 0:11:45]} Bd7 {[%emt 0:00:59]} 16. Ne2 {[%emt 0:00:59]} Nh5 {[%emt 0:02:55]} 17. Ned4 {[%emt 0:05:28]} Qf6 {[%emt 0:01:39]} 18. Be3 {[%emt 0:00:56]} Nhf4 {[%emt 0:03:01]} 19. Kh2 {[%emt 0:05:06]} Ne5 {[%emt 0:02:47]} 20. Nxe5 {[%emt 0:03:05]} dxe5 {[%emt 0:00:27]} 21. Nf3 {[%emt 0:00:44]} Bxe3 {[%emt 0:11:58]} 22. fxe3 {[%emt 0:00:27]} Ng6 {[%emt 0:00:54]} 23. Rf1 {[%emt 0:00:18]} Qd6 {[%emt 0:01:13]} 24. Qd2 {[%emt 0:02:29]} Ne7 {[%emt 0:01:28]} 25. Qc3 {[%emt 0:02:05]} Nxd5 {[%emt 0:11:02]} 26. exd5 {[%emt 0:01:18]} e4+ {[%emt 0:00:14]} 27. Qe5 {[%emt 0:00:07]} exf3 {[%emt 0:00:19]} 28. Qxd6 {[%emt 0:00:08]} cxd6 {[%emt 0:00:15]} 29. gxf3 {[%emt 0:00:52]} Rac8 {[%emt 0:02:20]} 30. Rac1 {[%emt 0:02:26]} Rc5 {[%emt 0:01:00]} 31. Bb3 {[%emt 0:01:09]} Rfc8 {[%emt 0:00:18]} 32. Rxc5 {[%emt 0:00:20]} Rxc5 {[%emt 0:00:04]} 33. Rf2 {[%emt 0:02:04]} Kf8 {[%emt 0:01:15]} 34. Rc2 {[%emt 0:00:42]} Ke7 {[%emt 0:00:50]} 35. Kg3 {[%emt 0:03:28]} g5 {[%emt 0:01:11]} 36. h4 {[%emt 0:00:56]} f6 {[%emt 0:04:56]} 37. f4 {[%emt 0:00:49]} a5 {[%emt 0:00:48]} 38. e4 {[%emt 0:01:05]} b4 {[%emt 0:02:22]} 39. hxg5 {[%emt 0:04:09]} hxg5 {[%emt 0:00:51]} 40. fxg5 {[%emt 0:01:30]} fxg5 {[%emt 0:00:08]} 41. Rxc5 {[%emt 0:30:25]} dxc5 {[%emt 0:30:06]} 42. e5 {[%emt 0:00:10]} Bf5 {[%emt 0:03:41]} 43. Bc4 {[%emt 0:01:02]} a4 {[%emt 0:01:54]} 44. d6+ {[%emt 0:01:10]} Kd8 {[%emt 0:03:23]} 45. a3 {[%emt 0:00:18]} bxa3 {[%emt 0:00:00]} 46. bxa3 {[%emt 0:00:00]} Bc2 {[%emt 0:00:00]} 47. e6 {[%emt 0:00:00]} Bg6 {[%emt 0:00:00]} 48. Kg4 {[%emt 0:00:00]} Be8 {[%emt 0:00:00]} 49. Kxg5 {[%emt 0:00:00]} Bc6 {[%emt 0:00:00]} 50. Kf6 {[%emt 0:00:00]} Be8 {[%emt 0:00:00]} 51. e7+ {[%emt 0:00:00]} Kc8 {[%emt 0:00:00]} 52. Be6+ {[%emt 0:00:00]} 1-0

[Event "106th British-ch Major 2019"]
[Site "Torquay"]
[Date "2019.08.03"]
[Round "8.26"]
[White "Metcalfe, Charlie P"]
[Black "Garnett, John S"]
[Result "1/2-1/2"]
[ECO "D19"]
[WhiteElo "1739"]
[BlackElo "1885"]
[Annotator "NA"]
[PlyCount "76"]
[EventDate "2019.07.27"]
[EventType "swiss"]
[EventCountry "GBR"]
[SourceTitle "playchess.com"]
[Source "ChessBase"]
[SourceQuality "1"]
[TimeControl "40/5400+30:1800+30"]

1. d4 {[%emt 0:00:00]} Nf6 {[%emt 0:00:00]} 2. Nf3 {[%emt 0:00:00]} d5 {[%emt 0:00:00]} 3. c4 {[%emt 0:00:00]} c6 {[%emt 0:00:00]} 4. Nc3 {[%emt 0:00:00]} dxc4 {[%emt 0:00:16]} 5. a4 {[%emt 0:00:00]} Bf5 {[%emt 0:00:28]} 6. e3 {[%emt 0:00:00]} e6 {[%emt 0:00:33]} 7. Bxc4 {[%emt 0:00:00]} Bb4 {[%emt 0:01:02]} 8. O-O {[%emt 0:00:00]} O-O {[%emt 0:00:53]} 9. Qe2 {[%emt 0:00:00]} Nbd7 {[%emt 0:01:56]} 10. e4 {[%emt 0:00:18]} Bg4 {[%emt 0:01:57]} 11. Rd1 {[%emt 0:00:12]} Nb6 {[%emt 0:02:07]} 12. Bd3 {[%emt 0:14:44]} Be7 {[%emt 0:13:22]} 13. h3 {[%emt 0:39:45]} Bh5 {[%emt 0:08:58]} 14. a5 {[%emt 0:00:08]} Nbd7 {[%emt 0:00:56]} 15. e5 {[%emt 0:00:51]} Nd5 {[%emt 0:01:32]} 16. Qe4 {[%emt 0:01:47]} Bg6 {[%emt 0:00:56]} 17. Qg4 {[%emt 0:00:04]} Re8 {[%emt 0:02:29]} 18. Bxg6 {[%emt 0:03:53]} hxg6 {[%emt 0:00:07]} 19. Nxd5 {[%emt 0:00:27]} cxd5 {[%emt 0:01:24]} 20. Bg5 {[%emt 0:00:29]} Bxg5 {[%emt 0:01:19]} 21. Nxg5 {[%emt 0:00:25]} Nf8 {[%emt 0:03:24]} 22. Re1 {[%emt 0:12:14]} Rc8 {[%emt 0:01:49]} 23. Ra3 {[%emt 0:01:59]} Rc2 {[%emt 0:03:21]} 24. b4 {[%emt 0:18:33]} Qc7 {[%emt 0:04:03]} 25. Rf3 {[%emt 0:01:29]} Re7 {[%emt 0:01:50]} 26. Rb1 {[%emt 0:03:04]} Rc1+ {[%emt 0:01:08]} 27. Rxc1 {[%emt 0:00:01]} Qxc1+ {[%emt 0:00:08]} 28. Kh2 {[%emt 0:00:01]} Qc4 {[%emt 0:01:43]} 29. Qf4 {[%emt 0:00:43]} Qc7 {[%emt 0:03:27]} 30. g3 {[%emt 0:02:37]} Nh7 {[%emt 0:02:41]} 31. Kg2 {[%emt 0:01:04]} Nxg5 {[%emt 0:01:57]} 32. Qxg5 {[%emt 0:00:01]} Rd7 {[%emt 0:01:21]} 33. Qd2 {[%emt 0:00:41]} Qc8 {[%emt 0:01:19]} 34. Rc3 {[%emt 0:00:45]} Rc7 {[%emt 0:00:21]} 35. Rxc7 {[%emt 0:00:30]} Qxc7 {[%emt 0:00:05]} 36. Qg5 {[%emt 0:00:37]} Kf8 {[%emt 0:01:50]} 37. Qh4 {[%emt 0:00:22]} Kg8 {[%emt 0:03:21]} 38. Qg5 {[%emt 0:00:01]} Kf8 {[%emt 0:04:26]} 1/2-1/2

[Event "106th British-ch Major 2019"]
[Site "Torquay"]
[Date "2019.08.03"]
[Round "8.27"]
[White "Tombolis, Christopher"]
[Black "Robertson, Jim"]
[Result "1-0"]
[ECO "D30"]
[WhiteElo "1883"]
[BlackElo "1580"]
[Annotator "NA"]
[PlyCount "73"]
[EventDate "2019.07.27"]
[EventType "swiss"]
[EventCountry "GBR"]
[SourceTitle "playchess.com"]
[Source "ChessBase"]
[SourceQuality "1"]
[TimeControl "40/5400+30:1800+30"]

1. d4 {[%emt 0:00:00]} d5 {[%emt 0:00:00]} 2. c4 {[%emt 0:00:00]} e6 {[%emt 0:00:00]} 3. Nf3 {[%emt 0:00:00]} c6 {[%emt 0:00:09]} 4. Qc2 {[%emt 0:00:00]} Bd6 {[%emt 0:00:44]} 5. g3 {[%emt 0:00:00]} f5 {[%emt 0:00:43]} 6. Bg2 {[%emt 0:00:07]} Nd7 {[%emt 0:00:25]} 7. cxd5 {[%emt 0:00:24]} cxd5 {[%emt 0:04:43]} 8. Nc3 {[%emt 0:01:50]} a6 {[%emt 0:08:17]} 9. O-O {[%emt 0:00:11]} Ngf6 {[%emt 0:00:27]} 10. Bf4 {[%emt 0:00:15]} Bxf4 {[%emt 0:02:49]} 11. gxf4 {[%emt 0:00:05]} Ne4 {[%emt 0:00:55]} 12. Rac1 {[%emt 0:04:47]} O-O {[%emt 0:01:59]} 13. e3 {[%emt 0:01:43]} h6 {[%emt 0:06:56]} 14. Ne5 {[%emt 0:03:08]} Nxe5 {[%emt 0:01:04]} 15. dxe5 {[%emt 0:01:36]} Bd7 {[%emt 0:00:26]} 16. Rfd1 {[%emt 0:01:57]} Rc8 {[%emt 0:01:19]} 17. Qb3 {[%emt 0:00:45]} Nxc3 {[%emt 0:17:18]} 18. bxc3 {[%emt 0:00:31]} Qc7 {[%emt 0:00:40]} 19. Bxd5 {[%emt 0:01:04]} Rfe8 {[%emt 0:19:03]} 20. Bg2 {[%emt 0:01:33]} Bb5 {[%emt 0:01:07]} 21. c4 {[%emt 0:01:20]} Bxc4 {[%emt 0:01:43]} 22. Qxb7 {[%emt 0:00:22]} Qxb7 {[%emt 0:04:59]} 23. Bxb7 {[%emt 0:00:02]} Rb8 {[%emt 0:00:47]} 24. Rxc4 {[%emt 0:00:07]} Rxb7 {[%emt 0:00:03]} 25. Rc6 {[%emt 0:00:15]} Ra7 {[%emt 0:03:16]} 26. Rdd6 {[%emt 0:00:06]} Rb8 {[%emt 0:00:51]} 27. Rxe6 {[%emt 0:00:54]} Rb2 {[%emt 0:01:36]} 28. Rxa6 {[%emt 0:00:13]} Rxa2 {[%emt 0:00:07]} 29. Rxa2 {[%emt 0:00:40]} Rxa2 {[%emt 0:00:02]} 30. h4 {[%emt 0:00:12]} h5 {[%emt 0:03:42]} 31. Rb6 {[%emt 0:01:55]} Ra7 {[%emt 0:02:39]} 32. Rb8+ {[%emt 0:01:05]} Kf7 {[%emt 0:00:16]} 33. Rh8 {[%emt 0:00:06]} Kg6 {[%emt 0:00:58]} 34. Kg2 {[%emt 0:00:30]} Ra4 {[%emt 0:02:05]} 35. Rd8 {[%emt 0:02:06]} Ra1 {[%emt 0:03:12]} 36. Rd7 {[%emt 0:00:34]} Re1 {[%emt 0:04:21]} 37. e6 {[%emt 0:00:52]} 1-0

[Event "106th British-ch Major 2019"]
[Site "Torquay"]
[Date "2019.08.03"]
[Round "8.28"]
[White "Roy, Ali"]
[Black "Hussain, Adam"]
[Result "1-0"]
[ECO "E18"]
[WhiteElo "1871"]
[BlackElo "1515"]
[Annotator "NA"]
[PlyCount "47"]
[EventDate "2019.07.27"]
[EventType "swiss"]
[EventCountry "GBR"]
[SourceTitle "playchess.com"]
[Source "ChessBase"]
[SourceQuality "1"]
[TimeControl "40/5400+30:1800+30"]

1. Nf3 {[%emt 0:00:00]} Nf6 {[%emt 0:00:00]} 2. g3 {[%emt 0:00:00]} b6 {[%emt 0:00:00]} 3. Bg2 {[%emt 0:00:00]} Bb7 {[%emt 0:00:00]} 4. O-O {[%emt 0:00:12]} e6 {[%emt 0:00:00]} 5. c4 {[%emt 0:01:04]} Be7 {[%emt 0:00:00]} 6. Nc3 {[%emt 0:00:08]} O-O {[%emt 0:00:32]} 7. d4 {[%emt 0:03:50]} Bb4 {[%emt 0:00:46]} 8. Qc2 {[%emt 0:08:30]} d6 {[%emt 0:00:08]} 9. b3 {[%emt 0:02:22]} Nbd7 {[%emt 0:02:16]} 10. Bb2 {[%emt 0:00:27]} Qe7 {[%emt 0:00:06]} 11. Rad1 {[%emt 0:05:23]} Bxc3 {[%emt 0:02:07]} 12. Bxc3 {[%emt 0:04:32]} Rad8 {[%emt 0:02:33]} 13. Rfe1 {[%emt 0:09:01]} Rfe8 {[%emt 0:03:34]} 14. e4 {[%emt 0:01:16]} e5 {[%emt 0:00:11]} 15. d5 {[%emt 0:02:20]} Bc8 {[%emt 0:00:31]} 16. b4 {[%emt 0:08:19]} Ng4 {[%emt 0:00:37]} 17. Nh4 {[%emt 0:10:08]} Ngf6 {[%emt 0:02:09]} 18. Nf5 {[%emt 0:00:30]} Qf8 {[%emt 0:00:12]} 19. f4 {[%emt 0:03:23]} g6 {[%emt 0:02:23]} 20. fxe5 {[%emt 0:05:01]} Nxe5 {[%emt 0:00:46]} 21. Nd4 {[%emt 0:01:15]} Bb7 {[%emt 0:05:58]} 22. Bd2 {[%emt 0:02:26]} h6 {[%emt 0:02:27]} 23. Rf1 {[%emt 0:01:10]} Nfd7 {[%emt 0:00:28]} 24. Ne6 {[%emt 0:01:32]} 1-0

[Event "106th British-ch Major 2019"]
[Site "Torquay"]
[Date "2019.08.03"]
[Round "8.29"]
[White "Li, Jack"]
[Black "Forster, James Connor Christo"]
[Result "0-1"]
[ECO "B12"]
[WhiteElo "1529"]
[BlackElo "1831"]
[Annotator "NA"]
[PlyCount "64"]
[EventDate "2019.07.27"]
[EventType "swiss"]
[EventCountry "GBR"]
[SourceTitle "playchess.com"]
[Source "ChessBase"]
[SourceQuality "1"]
[TimeControl "40/5400+30:1800+30"]

1. e4 {[%emt 0:00:00]} c6 {[%emt 0:00:28]} 2. d4 {[%emt 0:00:00]} d5 {[%emt 0:00:00]} 3. e5 {[%emt 0:00:00]} c5 {[%emt 0:00:11]} 4. dxc5 {[%emt 0:00:02]} e6 {[%emt 0:00:31]} 5. Be3 {[%emt 0:00:56]} Nc6 {[%emt 0:01:50]} 6. Nf3 {[%emt 0:00:11]} Nge7 {[%emt 0:05:17]} 7. c3 {[%emt 0:06:27]} Ng6 {[%emt 0:07:16]} 8. Bb5 {[%emt 0:05:35]} Bd7 {[%emt 0:04:19]} 9. Bxc6 {[%emt 0:00:41]} Bxc6 {[%emt 0:01:18]} 10. O-O {[%emt 0:01:10]} Qc7 {[%emt 0:01:02]} 11. Qd4 {[%emt 0:05:48]} Be7 {[%emt 0:10:45]} 12. Re1 {[%emt 0:07:04]} O-O {[%emt 0:03:27]} 13. Nbd2 {[%emt 0:06:46]} Kh8 {[%emt 0:12:29]} 14. Nb3 {[%emt 0:05:03]} f6 {[%emt 0:07:26]} 15. exf6 {[%emt 0:00:28]} Bxf6 {[%emt 0:00:33]} 16. Qd2 {[%emt 0:11:16]} e5 {[%emt 0:03:57]} 17. Red1 {[%emt 0:17:55]} Be7 {[%emt 0:07:17]} 18. Qe2 {[%emt 0:08:24]} Rf5 {[%emt 0:02:09]} 19. Rd2 {[%emt 0:07:06]} Raf8 {[%emt 0:06:21]} 20. Rad1 {[%emt 0:09:17]} a6 {[%emt 0:01:32]} 21. h3 {[%emt 0:01:05]} Bd8 {[%emt 0:01:37]} 22. Nh2 {[%emt 0:01:44]} Bh4 {[%emt 0:05:04]} 23. Qe1 {[%emt 0:01:44]} Bg5 {[%emt 0:02:05]} 24. Nf3 {[%emt 0:01:32]} Bxe3 {[%emt 0:02:51]} 25. Qxe3 {[%emt 0:00:12]} Nf4 {[%emt 0:09:04]} 26. Ne1 {[%emt 0:01:08]} Qd8 {[%emt 0:01:08]} 27. Qg3 {[%emt 0:00:50]} Rg5 {[%emt 0:00:52]} 28. Qe3 {[%emt 0:00:36]} Qf6 {[%emt 0:00:30]} 29. Kh2 {[%emt 0:00:32]} d4 {[%emt 0:00:54]} 30. cxd4 {[%emt 0:00:12]} Nxg2 {[%emt 0:00:05]} 31. dxe5 {[%emt 0:01:04]} Nxe3 {[%emt 0:00:05]} 32. exf6 {[%emt 0:00:02]} Nf1# {[%emt 0:00:13] Kg3} 0-1